[Event "Titled Tuesday Blitz January 31 Late 2023"]
[White "Shapiro, Viktor"]
[Black "Hambleton, Aman"]
[WhiteFideId "4175700"]
[BlackFideId "2606577"]
[WhiteElo "2192"]
[BlackElo "2420"]
[Result "1-0"]
[Round "11"]
[TimeControl "180+2"]
[Date "2023.02.01"]
[WhiteClock "0:00:23"]
[BlackClock "0:00:02"]

1. c4 {[%clk 0:03:00]}  c5 {[%clk 0:02:59]} 2. Nc3 {[%clk 0:03:01]}  b6 {[%clk 0:03:00]} 3. g3 {[%clk 0:03:01]}  Bb7 {[%clk 0:03:00]} 4. Nf3 {[%clk 0:03:02]}  Bxf3 {[%clk 0:03:01]} 5. exf3 {[%clk 0:03:02]}  Nc6 {[%clk 0:03:02]} 6. f4 {[%clk 0:03:03]}  g6 {[%clk 0:03:02]} 7. Bg2 {[%clk 0:03:03]}  Bg7 {[%clk 0:03:02]} 8. O-O {[%clk 0:03:04]}  Nh6 {[%clk 0:03:03]} 9. d3 {[%clk 0:03:01]}  Nf5 {[%clk 0:03:03]} 10. Be3 {[%clk 0:02:58]}  Rc8 {[%clk 0:03:03]} 11. Rb1 {[%clk 0:02:50]}  h5 {[%clk 0:03:03]} 12. Ne4 {[%clk 0:02:39]}  d6 {[%clk 0:03:01]} 13. a3 {[%clk 0:02:38]}  O-O {[%clk 0:02:59]} 14. b4 {[%clk 0:02:37]}  e6 {[%clk 0:03:00]} 15. h3 {[%clk 0:02:27]}  Re8 {[%clk 0:02:59]} 16. Re1 {[%clk 0:02:20]}  Ncd4 {[%clk 0:03:00]} 17. Ng5 {[%clk 0:02:12]}  Qd7 {[%clk 0:02:57]} 18. g4 {[%clk 0:02:02]}  hxg4 {[%clk 0:02:54]} 19. hxg4 {[%clk 0:02:01]}  Ne7 {[%clk 0:02:40]} 20. Bxd4 {[%clk 0:01:52]}  Bxd4 {[%clk 0:02:40]} 21. Qf3 {[%clk 0:01:48]}  Kg7 {[%clk 0:02:41]} 22. Bh3 {[%clk 0:01:34]}  Rh8 {[%clk 0:02:29]} 23. Kg2 {[%clk 0:01:34]}  Rh4 {[%clk 0:02:15]} 24. Re2 {[%clk 0:01:20]}  Rch8 {[%clk 0:01:56]} 25. Rbe1 {[%clk 0:01:13]}  Bf6 {[%clk 0:01:11]} 26. Rh1 {[%clk 0:01:12]}  Nc6 {[%clk 0:01:07]} 27. Qg3 {[%clk 0:01:04]}  Nd4 {[%clk 0:01:02]} 28. Ra2 {[%clk 0:00:59]}  Bxg5 {[%clk 0:00:20]} 29. fxg5 {[%clk 0:00:58]}  Qb7+ {[%clk 0:00:20]} 30. f3 {[%clk 0:00:58]}  Nxf3 {[%clk 0:00:20]} 31. Qxf3 {[%clk 0:00:56]}  Qxf3+ {[%clk 0:00:20]} 32. Kxf3 {[%clk 0:00:56]}  Rxh3+ {[%clk 0:00:21]} 33. Rxh3 {[%clk 0:00:56]}  Rxh3+ {[%clk 0:00:22]} 34. Ke4 {[%clk 0:00:55]}  Rg3 {[%clk 0:00:23]} 35. bxc5 {[%clk 0:00:50]}  dxc5 {[%clk 0:00:13]} 36. a4 {[%clk 0:00:45]}  Rxg4+ {[%clk 0:00:13]} 37. Ke5 {[%clk 0:00:45]}  Rxg5+ {[%clk 0:00:12]} 38. Kd6 {[%clk 0:00:46]}  Rg3 {[%clk 0:00:06]} 39. Rd2 {[%clk 0:00:44]}  g5 {[%clk 0:00:04]} 40. Kc6 {[%clk 0:00:44]}  f5 {[%clk 0:00:04]} 41. Kb7 {[%clk 0:00:44]}  Rg1 {[%clk 0:00:03]} 42. Kxa7 {[%clk 0:00:44]}  Ra1 {[%clk 0:00:04]} 43. Kxb6 {[%clk 0:00:45]}  Rxa4 {[%clk 0:00:05]} 44. Kxc5 {[%clk 0:00:45]}  Kf6 {[%clk 0:00:05]} 45. d4 {[%clk 0:00:44]}  g4 {[%clk 0:00:04]} 46. Kb5 {[%clk 0:00:41]}  Ra1 {[%clk 0:00:03]} 47. c5 {[%clk 0:00:41]}  Rb1+ {[%clk 0:00:03]} 48. Ka6 {[%clk 0:00:40]}  Rc1 {[%clk 0:00:03]} 49. Kb6 {[%clk 0:00:40]}  f4 {[%clk 0:00:03]} 50. c6 {[%clk 0:00:41]}  f3 {[%clk 0:00:04]} 51. Rf2 {[%clk 0:00:33]}  Kf5 {[%clk 0:00:04]} 52. c7 {[%clk 0:00:33]}  Kf4 {[%clk 0:00:04]} 53. Rh2 {[%clk 0:00:27]}  Rxc7 {[%clk 0:00:04]} 54. Kxc7 {[%clk 0:00:27]}  g3 {[%clk 0:00:05]} 55. Rh7 {[%clk 0:00:26]}  g2 {[%clk 0:00:05]} 56. Rg7 {[%clk 0:00:26]}  Ke4 {[%clk 0:00:03]} 57. Kd6 {[%clk 0:00:25]}  Kxd4 {[%clk 0:00:02]} 58. Kxe6 {[%clk 0:00:26]}  Ke3 {[%clk 0:00:01]} 59. Ke5 {[%clk 0:00:24]}  f2 {[%clk 0:00:02]} 60. Rg3+ {[%clk 0:00:23]} 1-0


[Site "https://www.chess.com"]

[Event "Titled Tuesday Blitz January 31 Late 2023"]
[White "Averjanov, Alexey"]
[Black "Moral Garcia, Serafin"]
[WhiteFideId "14109867"]
[BlackFideId "2201925"]
[WhiteElo "2399"]
[BlackElo "2238"]
[Result "0-1"]
[Round "11"]
[TimeControl "180+2"]
[Date "2023.02.01"]
[WhiteClock "0:02:02"]
[BlackClock "0:00:47"]

1. d4 {[%clk 0:03:00]}  Nf6 {[%clk 0:02:59]} 2. c4 {[%clk 0:03:01]}  g6 {[%clk 0:02:59]} 3. Nc3 {[%clk 0:03:00]}  d5 {[%clk 0:02:59]} 4. cxd5 {[%clk 0:03:00]}  Nxd5 {[%clk 0:02:59]} 5. e4 {[%clk 0:03:01]}  Nxc3 {[%clk 0:02:59]} 6. bxc3 {[%clk 0:03:02]}  Bg7 {[%clk 0:03:00]} 7. Nf3 {[%clk 0:03:03]}  c5 {[%clk 0:02:59]} 8. Be3 {[%clk 0:03:04]}  Bg4 {[%clk 0:02:50]} 9. Qd2 {[%clk 0:03:02]}  Qa5 {[%clk 0:02:48]} 10. Rc1 {[%clk 0:02:56]}  Nc6 {[%clk 0:02:47]} 11. d5 {[%clk 0:02:56]}  Bxf3 {[%clk 0:02:47]} 12. gxf3 {[%clk 0:02:56]}  Ne5 {[%clk 0:02:43]} 13. Be2 {[%clk 0:02:57]}  O-O {[%clk 0:02:36]} 14. f4 {[%clk 0:02:56]}  Nd7 {[%clk 0:02:36]} 15. c4 {[%clk 0:02:57]}  Qxd2+ {[%clk 0:02:33]} 16. Kxd2 {[%clk 0:02:58]}  e6 {[%clk 0:02:32]} 17. Rhd1 {[%clk 0:02:58]}  exd5 {[%clk 0:02:28]} 18. cxd5 {[%clk 0:02:59]}  b6 {[%clk 0:02:25]} 19. a4 {[%clk 0:02:56]}  Rfe8 {[%clk 0:02:23]} 20. Bb5 {[%clk 0:02:56]}  Nf6 {[%clk 0:02:13]} 21. f3 {[%clk 0:02:54]}  Red8 {[%clk 0:02:09]} 22. Ke2 {[%clk 0:02:52]}  Nh5 {[%clk 0:02:07]} 23. a5 {[%clk 0:02:49]}  Bh6 {[%clk 0:02:05]} 24. Bc6 {[%clk 0:02:47]}  Rac8 {[%clk 0:02:01]} 25. axb6 {[%clk 0:02:46]}  axb6 {[%clk 0:02:01]} 26. Rb1 {[%clk 0:02:46]}  Rb8 {[%clk 0:01:59]} 27. Rb3 {[%clk 0:02:38]}  Bxf4 {[%clk 0:01:57]} 28. Rdb1 {[%clk 0:02:37]}  Bc7 {[%clk 0:01:52]} 29. Ra1 {[%clk 0:02:36]}  f5 {[%clk 0:01:29]} 30. Ra7 {[%clk 0:02:34]}  Bxh2 {[%clk 0:01:24]} 31. Kd3 {[%clk 0:02:30]}  fxe4+ {[%clk 0:01:16]} 32. fxe4 {[%clk 0:02:31]}  Be5 {[%clk 0:01:16]} 33. Kc4 {[%clk 0:02:20]}  Nf6 {[%clk 0:01:15]} 34. Kd3 {[%clk 0:02:18]}  Ne8 {[%clk 0:01:11]} 35. Bg5 {[%clk 0:02:15]}  Nd6 {[%clk 0:00:56]} 36. Bxd8 {[%clk 0:02:14]}  c4+ {[%clk 0:00:52]} 37. Kd2 {[%clk 0:02:03]}  cxb3 {[%clk 0:00:52]} 38. Bc7 {[%clk 0:02:03]}  Nxe4+ {[%clk 0:00:51]} 39. Ke3 {[%clk 0:02:02]}  Bxc7 {[%clk 0:00:47]} 0-1


[Site "https://www.chess.com"]

[Event "Titled Tuesday Blitz January 31 Late 2023"]
[White "Gurevich, Dmitry"]
[Black "Klose, Eli"]
[WhiteFideId "2000407"]
[BlackFideId "16242955"]
[WhiteElo "2393"]
[BlackElo "1519"]
[Result "0-1"]
[Round "11"]
[TimeControl "180+2"]
[Date "2023.02.01"]
[WhiteClock "0:00:02"]
[BlackClock "0:00:03"]

1. d4 {[%clk 0:02:57]}  Nf6 {[%clk 0:02:56]} 2. c4 {[%clk 0:02:57]}  c5 {[%clk 0:02:56]} 3. Nf3 {[%clk 0:02:56]}  cxd4 {[%clk 0:02:55]} 4. Nxd4 {[%clk 0:02:56]}  Nc6 {[%clk 0:02:56]} 5. Nc3 {[%clk 0:02:55]}  d6 {[%clk 0:02:57]} 6. g3 {[%clk 0:02:49]}  Bd7 {[%clk 0:02:57]} 7. Bg2 {[%clk 0:02:49]}  Qc8 {[%clk 0:02:58]} 8. O-O {[%clk 0:02:42]}  Bh3 {[%clk 0:02:58]} 9. Bg5 {[%clk 0:02:40]}  h5 {[%clk 0:02:54]} 10. Nxc6 {[%clk 0:02:12]}  bxc6 {[%clk 0:02:53]} 11. Qa4 {[%clk 0:02:06]}  Bxg2 {[%clk 0:02:48]} 12. Kxg2 {[%clk 0:02:04]}  h4 {[%clk 0:02:49]} 13. Bxf6 {[%clk 0:01:44]}  hxg3 {[%clk 0:02:38]} 14. hxg3 {[%clk 0:01:33]}  gxf6 {[%clk 0:01:49]} 15. Rh1 {[%clk 0:01:32]}  Rg8 {[%clk 0:01:48]} 16. Rh4 {[%clk 0:01:22]}  Rb8 {[%clk 0:01:48]} 17. b3 {[%clk 0:01:18]}  Qb7 {[%clk 0:01:47]} 18. Rah1 {[%clk 0:01:14]}  Bg7 {[%clk 0:01:39]} 19. Re4 {[%clk 0:01:02]}  f5 {[%clk 0:01:29]} 20. Re3 {[%clk 0:01:02]}  Kf8 {[%clk 0:01:23]} 21. f3 {[%clk 0:00:48]}  e6 {[%clk 0:01:12]} 22. Rd3 {[%clk 0:00:40]}  c5 {[%clk 0:01:10]} 23. Nb5 {[%clk 0:00:31]}  Be5 {[%clk 0:01:03]} 24. Rh3 {[%clk 0:00:28]}  Rd8 {[%clk 0:00:46]} 25. Kf2 {[%clk 0:00:26]}  a6 {[%clk 0:00:43]} 26. Nc3 {[%clk 0:00:25]}  Ke7 {[%clk 0:00:41]} 27. Qa3 {[%clk 0:00:20]}  Rh8 {[%clk 0:00:37]} 28. Rxh8 {[%clk 0:00:18]}  Rxh8 {[%clk 0:00:38]} 29. Qc1 {[%clk 0:00:13]}  Qa8 {[%clk 0:00:29]} 30. Qg5+ {[%clk 0:00:11]}  Bf6 {[%clk 0:00:29]} 31. Qf4 {[%clk 0:00:10]}  Qb8 {[%clk 0:00:29]} 32. e3 {[%clk 0:00:06]}  Be5 {[%clk 0:00:29]} 33. Qg5+ {[%clk 0:00:06]}  Bf6 {[%clk 0:00:29]} 34. Qf4 {[%clk 0:00:06]}  Rh2+ {[%clk 0:00:26]} 35. Kg1 {[%clk 0:00:05]}  Rh5 {[%clk 0:00:26]} 36. g4 {[%clk 0:00:05]}  Rh4 {[%clk 0:00:17]} 37. Qg3 {[%clk 0:00:04]}  Rh7 {[%clk 0:00:06]} 38. g5 {[%clk 0:00:04]}  Be5 {[%clk 0:00:05]} 39. f4 {[%clk 0:00:04]}  Bxc3 {[%clk 0:00:04]} 40. Rxc3 {[%clk 0:00:04]}  Qh8 {[%clk 0:00:05]} 41. Qg2 {[%clk 0:00:03]}  Qxc3 {[%clk 0:00:05]} 42. g6 {[%clk 0:00:03]}  Rg7 {[%clk 0:00:04]} 43. Qg5+ {[%clk 0:00:02]}  Qf6 {[%clk 0:00:03]} 0-1


[Site "https://www.chess.com"]

[Event "Titled Tuesday Blitz January 31 Late 2023"]
[White "Tanenbaum, Zachary"]
[Black "Novikov, Evgenij"]
[WhiteFideId "2060850"]
[BlackFideId "4125380"]
[WhiteElo "2261"]
[BlackElo "2276"]
[Result "1-0"]
[Round "11"]
[TimeControl "180+2"]
[Date "2023.02.01"]
[WhiteClock "0:01:08"]
[BlackClock "0:00:01"]

1. e4 {[%clk 0:03:00]}  d6 {[%clk 0:02:57]} 2. d4 {[%clk 0:03:01]}  c6 {[%clk 0:02:55]} 3. Nc3 {[%clk 0:03:02]}  Qc7 {[%clk 0:02:55]} 4. f4 {[%clk 0:03:00]}  g6 {[%clk 0:02:53]} 5. Nf3 {[%clk 0:03:00]}  Bg7 {[%clk 0:02:52]} 6. Bc4 {[%clk 0:02:56]}  b5 {[%clk 0:02:50]} 7. Bb3 {[%clk 0:02:56]}  a5 {[%clk 0:02:47]} 8. a4 {[%clk 0:02:53]}  b4 {[%clk 0:02:47]} 9. Ne2 {[%clk 0:02:53]}  Nf6 {[%clk 0:02:42]} 10. e5 {[%clk 0:02:52]}  Nd5 {[%clk 0:02:40]} 11. O-O {[%clk 0:02:29]}  O-O {[%clk 0:02:31]} 12. Ng3 {[%clk 0:02:27]}  h6 {[%clk 0:01:37]} 13. f5 {[%clk 0:02:22]}  Bxf5 {[%clk 0:01:23]} 14. Nxf5 {[%clk 0:02:21]}  gxf5 {[%clk 0:01:24]} 15. Qe1 {[%clk 0:02:08]}  dxe5 {[%clk 0:01:16]} 16. Nxe5 {[%clk 0:02:04]}  Nd7 {[%clk 0:01:11]} 17. Rxf5 {[%clk 0:01:45]}  Nxe5 {[%clk 0:01:07]} 18. dxe5 {[%clk 0:01:46]}  e6 {[%clk 0:00:47]} 19. Rh5 {[%clk 0:01:45]}  f5 {[%clk 0:00:42]} 20. Bxh6 {[%clk 0:01:32]}  Rf7 {[%clk 0:00:16]} 21. Bxg7 {[%clk 0:01:15]}  Rxg7 {[%clk 0:00:17]} 22. Qh4 {[%clk 0:01:13]}  Qa7+ {[%clk 0:00:01]} 23. Kh1 {[%clk 0:01:11]}  Rf8 {[%clk 0:00:01]} 24. Bxd5 {[%clk 0:01:08]} 1-0


[Site "https://www.chess.com"]

[Event "Titled Tuesday Blitz January 31 Late 2023"]
[White "Bambino Filho, Antonio Carlos"]
[Black "Rosen, Eric"]
[WhiteFideId "2113163"]
[BlackFideId "2032562"]
[WhiteElo "2144"]
[BlackElo "2349"]
[Result "0-1"]
[Round "11"]
[TimeControl "180+2"]
[Date "2023.02.01"]
[WhiteClock "0:00:07"]
[BlackClock "0:00:06"]

1. c4 {[%clk 0:03:00]}  e5 {[%clk 0:02:49]} 2. Nc3 {[%clk 0:03:01]}  Nf6 {[%clk 0:02:48]} 3. g3 {[%clk 0:03:01]}  Nc6 {[%clk 0:02:47]} 4. Bg2 {[%clk 0:03:02]}  Bc5 {[%clk 0:02:48]} 5. e3 {[%clk 0:03:01]}  d5 {[%clk 0:02:48]} 6. cxd5 {[%clk 0:02:48]}  Nb4 {[%clk 0:02:47]} 7. d4 {[%clk 0:02:45]}  exd4 {[%clk 0:02:46]} 8. exd4 {[%clk 0:02:46]}  Be7 {[%clk 0:02:47]} 9. a3 {[%clk 0:02:39]}  Nbxd5 {[%clk 0:02:47]} 10. Nge2 {[%clk 0:02:39]}  O-O {[%clk 0:02:46]} 11. O-O {[%clk 0:02:39]}  c6 {[%clk 0:02:47]} 12. Re1 {[%clk 0:02:37]}  Be6 {[%clk 0:02:46]} 13. h3 {[%clk 0:02:33]}  h6 {[%clk 0:02:44]} 14. Nf4 {[%clk 0:02:33]}  Nxf4 {[%clk 0:02:34]} 15. Bxf4 {[%clk 0:02:34]}  Re8 {[%clk 0:02:33]} 16. Qd2 {[%clk 0:01:59]}  Qd7 {[%clk 0:02:32]} 17. Kh2 {[%clk 0:01:58]}  Rad8 {[%clk 0:02:30]} 18. Rad1 {[%clk 0:01:59]}  Nd5 {[%clk 0:02:29]} 19. Ne4 {[%clk 0:01:48]}  Nb6 {[%clk 0:02:10]} 20. Nc5 {[%clk 0:01:40]}  Bxc5 {[%clk 0:02:05]} 21. dxc5 {[%clk 0:01:41]}  Qxd2 {[%clk 0:02:05]} 22. Rxd2 {[%clk 0:01:41]}  Rxd2 {[%clk 0:01:01]} 23. Bxd2 {[%clk 0:01:42]}  Na4 {[%clk 0:01:01]} 24. b4 {[%clk 0:01:31]}  Nb2 {[%clk 0:01:01]} 25. f4 {[%clk 0:00:47]}  Rd8 {[%clk 0:00:57]} 26. Bc3 {[%clk 0:00:40]}  Nc4 {[%clk 0:00:44]} 27. b5 {[%clk 0:00:40]}  Nxa3 {[%clk 0:00:37]} 28. bxc6 {[%clk 0:00:38]}  bxc6 {[%clk 0:00:38]} 29. Bxc6 {[%clk 0:00:39]}  Rc8 {[%clk 0:00:38]} 30. Ra1 {[%clk 0:00:29]}  Rxc6 {[%clk 0:00:32]} 31. Rxa3 {[%clk 0:00:29]}  Rxc5 {[%clk 0:00:32]} 32. g4 {[%clk 0:00:29]}  a6 {[%clk 0:00:26]} 33. Kg3 {[%clk 0:00:26]}  Rc6 {[%clk 0:00:26]} 34. Kf3 {[%clk 0:00:25]}  f6 {[%clk 0:00:25]} 35. Ke3 {[%clk 0:00:25]}  Bc4 {[%clk 0:00:23]} 36. Bd4 {[%clk 0:00:25]}  Bb5 {[%clk 0:00:22]} 37. Rc3 {[%clk 0:00:22]}  Re6+ {[%clk 0:00:18]} 38. Kf3 {[%clk 0:00:22]}  Re7 {[%clk 0:00:17]} 39. f5 {[%clk 0:00:20]}  Rd7 {[%clk 0:00:14]} 40. Bb6 {[%clk 0:00:19]}  Kh7 {[%clk 0:00:13]} 41. Rc7 {[%clk 0:00:18]}  Rd3+ {[%clk 0:00:13]} 42. Kg2 {[%clk 0:00:17]}  Rd2+ {[%clk 0:00:13]} 43. Kg3 {[%clk 0:00:17]}  Rd3+ {[%clk 0:00:13]} 44. Kg2 {[%clk 0:00:16]}  Rb3 {[%clk 0:00:13]} 45. Bc5 {[%clk 0:00:16]}  Bc4 {[%clk 0:00:05]} 46. Bf8 {[%clk 0:00:14]}  Bd5+ {[%clk 0:00:06]} 47. Kh2 {[%clk 0:00:10]}  Rb2+ {[%clk 0:00:04]} 48. Kg3 {[%clk 0:00:10]}  Rb3+ {[%clk 0:00:04]} 49. Kh2 {[%clk 0:00:10]}  Rb7 {[%clk 0:00:05]} 50. Rxb7 {[%clk 0:00:08]}  Bxb7 {[%clk 0:00:06]} 51. Kg3 {[%clk 0:00:08]}  a5 {[%clk 0:00:06]} 52. Kf4 {[%clk 0:00:08]}  a4 {[%clk 0:00:05]} 53. Ba3 {[%clk 0:00:08]}  Bd5 {[%clk 0:00:05]} 54. h4 {[%clk 0:00:08]}  Kg8 {[%clk 0:00:05]} 55. g5 {[%clk 0:00:08]}  hxg5+ {[%clk 0:00:04]} 56. hxg5 {[%clk 0:00:09]}  Kf7 {[%clk 0:00:04]} 57. g6+ {[%clk 0:00:07]}  Ke8 {[%clk 0:00:04]} 58. Ke3 {[%clk 0:00:07]}  Bb3 {[%clk 0:00:05]} 59. Kd4 {[%clk 0:00:08]}  Bc2 {[%clk 0:00:04]} 60. Kc5 {[%clk 0:00:04]}  Bxf5 {[%clk 0:00:04]} 61. Kb4 {[%clk 0:00:05]}  Bc2 {[%clk 0:00:04]} 62. Kc5 {[%clk 0:00:04]}  Bb3 {[%clk 0:00:02]} 63. Kd6 {[%clk 0:00:04]}  Bc2 {[%clk 0:00:03]} 64. Bb2 {[%clk 0:00:02]}  Bxg6 {[%clk 0:00:03]} 65. Kc5 {[%clk 0:00:03]}  Bc2 {[%clk 0:00:03]} 66. Kb4 {[%clk 0:00:03]}  Kf7 {[%clk 0:00:03]} 67. Kc3 {[%clk 0:00:03]}  Bb3 {[%clk 0:00:04]} 68. Kd2 {[%clk 0:00:04]}  g5 {[%clk 0:00:05]} 69. Ke3 {[%clk 0:00:05]}  Kg6 {[%clk 0:00:05]} 70. Kf3 {[%clk 0:00:05]}  f5 {[%clk 0:00:06]} 71. Bc1 {[%clk 0:00:03]}  f4 {[%clk 0:00:05]} 72. Ke4 {[%clk 0:00:02]}  Bc2+ {[%clk 0:00:05]} 73. Kf3 {[%clk 0:00:03]}  Kf5 {[%clk 0:00:05]} 74. Kf2 {[%clk 0:00:04]}  g4 {[%clk 0:00:05]} 75. Ke2 {[%clk 0:00:04]}  Bb3 {[%clk 0:00:06]} 76. Kd3 {[%clk 0:00:04]}  Bd5 {[%clk 0:00:05]} 77. Ke2 {[%clk 0:00:05]}  Be4 {[%clk 0:00:05]} 78. Kf2 {[%clk 0:00:05]}  g3+ {[%clk 0:00:05]} 79. Kg1 {[%clk 0:00:06]}  Kg4 {[%clk 0:00:06]} 80. Kf1 {[%clk 0:00:06]}  f3 {[%clk 0:00:05]} 81. Be3 {[%clk 0:00:07]}  Bd3+ {[%clk 0:00:05]} 82. Kg1 {[%clk 0:00:07]}  a3 {[%clk 0:00:06]} 0-1


[Site "https://www.chess.com"]

[Event "Titled Tuesday Blitz January 31 Late 2023"]
[White "Cruz, William Ferreira Da"]
[Black "Liu, Eric"]
[WhiteFideId "2118050"]
[BlackFideId "30960240"]
[WhiteElo "2216"]
[BlackElo "2299"]
[Result "0-1"]
[Round "11"]
[TimeControl "180+2"]
[Date "2023.02.01"]
[WhiteClock "0:00:18"]
[BlackClock "0:00:40"]

1. d4 {[%clk 0:03:00]}  g6 {[%clk 0:02:59]} 2. c4 {[%clk 0:03:01]}  Bg7 {[%clk 0:03:00]} 3. Nc3 {[%clk 0:03:00]}  c5 {[%clk 0:03:00]} 4. Nf3 {[%clk 0:02:59]}  cxd4 {[%clk 0:02:48]} 5. Nxd4 {[%clk 0:02:58]}  Nc6 {[%clk 0:02:48]} 6. e3 {[%clk 0:02:55]}  Nf6 {[%clk 0:02:46]} 7. Be2 {[%clk 0:02:54]}  O-O {[%clk 0:02:47]} 8. O-O {[%clk 0:02:55]}  d6 {[%clk 0:02:40]} 9. b3 {[%clk 0:02:54]}  Bd7 {[%clk 0:02:40]} 10. Bb2 {[%clk 0:02:54]}  a6 {[%clk 0:02:39]} 11. Rc1 {[%clk 0:02:49]}  Rc8 {[%clk 0:02:39]} 12. Qd2 {[%clk 0:02:47]}  Re8 {[%clk 0:02:36]} 13. Rfd1 {[%clk 0:02:44]}  Qa5 {[%clk 0:02:30]} 14. Bf3 {[%clk 0:02:32]}  Qb6 {[%clk 0:02:17]} 15. Nxc6 {[%clk 0:02:25]}  Bxc6 {[%clk 0:02:12]} 16. Nd5 {[%clk 0:02:19]}  Bxd5 {[%clk 0:02:05]} 17. cxd5 {[%clk 0:02:19]}  Nd7 {[%clk 0:02:04]} 18. Rxc8 {[%clk 0:02:03]}  Rxc8 {[%clk 0:02:03]} 19. Bg4 {[%clk 0:02:04]}  f5 {[%clk 0:02:02]} 20. Be2 {[%clk 0:01:58]}  Bxb2 {[%clk 0:02:00]} 21. Qxb2 {[%clk 0:01:57]}  Qc5 {[%clk 0:01:54]} 22. h4 {[%clk 0:01:51]}  Qc2 {[%clk 0:01:48]} 23. Rd2 {[%clk 0:01:48]}  Qxb2 {[%clk 0:01:32]} 24. Rxb2 {[%clk 0:01:48]}  Rc1+ {[%clk 0:01:30]} 25. Kh2 {[%clk 0:01:47]}  b5 {[%clk 0:01:27]} 26. b4 {[%clk 0:01:43]}  Nb6 {[%clk 0:01:24]} 27. Rd2 {[%clk 0:01:15]}  Rb1 {[%clk 0:01:17]} 28. a3 {[%clk 0:01:06]}  Rb3 {[%clk 0:01:12]} 29. Rd3 {[%clk 0:01:01]}  Rxd3 {[%clk 0:01:11]} 30. Bxd3 {[%clk 0:01:01]}  Nxd5 {[%clk 0:01:12]} 31. Kg3 {[%clk 0:00:50]}  e5 {[%clk 0:01:09]} 32. a4 {[%clk 0:00:36]}  Nc7 {[%clk 0:00:53]} 33. axb5 {[%clk 0:00:31]}  axb5 {[%clk 0:00:54]} 34. f4 {[%clk 0:00:26]}  e4 {[%clk 0:00:53]} 35. Be2 {[%clk 0:00:25]}  Kf7 {[%clk 0:00:54]} 36. Kf2 {[%clk 0:00:25]}  Ke6 {[%clk 0:00:52]} 37. h5 {[%clk 0:00:25]}  Kd7 {[%clk 0:00:51]} 38. hxg6 {[%clk 0:00:24]}  hxg6 {[%clk 0:00:52]} 39. g4 {[%clk 0:00:24]}  Kc6 {[%clk 0:00:50]} 40. Kg3 {[%clk 0:00:23]}  Nd5 {[%clk 0:00:49]} 41. Kh4 {[%clk 0:00:23]}  Nxe3 {[%clk 0:00:48]} 42. Kg5 {[%clk 0:00:20]}  fxg4 {[%clk 0:00:45]} 43. Kh4 {[%clk 0:00:19]}  d5 {[%clk 0:00:39]} 44. Kg3 {[%clk 0:00:18]}  d4 {[%clk 0:00:40]} 0-1


[Site "https://www.chess.com"]

[Event "Titled Tuesday Blitz January 31 Late 2023"]
[White "Pasti, Aron"]
[Black "Kujawski, Adam"]
[WhiteFideId "785857"]
[BlackFideId "1100920"]
[WhiteElo "2361"]
[BlackElo "2173"]
[Result "1-0"]
[Round "11"]
[TimeControl "180+2"]
[Date "2023.02.01"]
[WhiteClock "0:01:04"]
[BlackClock "0:00:06"]

1. e4 {[%clk 0:03:00]}  e5 {[%clk 0:02:56]} 2. Nf3 {[%clk 0:02:59]}  Nc6 {[%clk 0:02:56]} 3. Bb5 {[%clk 0:03:00]}  a6 {[%clk 0:02:56]} 4. Ba4 {[%clk 0:03:00]}  Nf6 {[%clk 0:02:55]} 5. O-O {[%clk 0:03:00]}  Be7 {[%clk 0:02:55]} 6. Re1 {[%clk 0:03:01]}  b5 {[%clk 0:02:55]} 7. Bb3 {[%clk 0:03:02]}  O-O {[%clk 0:02:55]} 8. d4 {[%clk 0:02:59]}  d6 {[%clk 0:02:40]} 9. c3 {[%clk 0:02:58]}  Bg4 {[%clk 0:02:39]} 10. d5 {[%clk 0:02:54]}  Na5 {[%clk 0:02:38]} 11. Bc2 {[%clk 0:02:50]}  c6 {[%clk 0:02:38]} 12. h3 {[%clk 0:02:49]}  Bc8 {[%clk 0:02:37]} 13. b4 {[%clk 0:02:47]}  Nc4 {[%clk 0:02:31]} 14. dxc6 {[%clk 0:02:46]}  Qc7 {[%clk 0:02:27]} 15. a4 {[%clk 0:02:46]}  Qxc6 {[%clk 0:02:21]} 16. axb5 {[%clk 0:02:46]}  axb5 {[%clk 0:02:17]} 17. Rxa8 {[%clk 0:02:44]}  Qxa8 {[%clk 0:02:17]} 18. Nbd2 {[%clk 0:02:44]}  Nxd2 {[%clk 0:01:57]} 19. Bxd2 {[%clk 0:02:45]}  Be6 {[%clk 0:01:52]} 20. Bd3 {[%clk 0:02:43]}  Rb8 {[%clk 0:01:42]} 21. Qa1 {[%clk 0:02:43]}  Qb7 {[%clk 0:00:52]} 22. Qb2 {[%clk 0:02:42]}  h6 {[%clk 0:00:45]} 23. Nh4 {[%clk 0:02:39]}  Ra8 {[%clk 0:00:43]} 24. Nf5 {[%clk 0:02:37]}  Ra2 {[%clk 0:00:32]} 25. Qc1 {[%clk 0:02:35]}  Bxf5 {[%clk 0:00:26]} 26. exf5 {[%clk 0:02:35]}  Qd5 {[%clk 0:00:24]} 27. Bc2 {[%clk 0:02:04]}  e4 {[%clk 0:00:17]} 28. Qd1 {[%clk 0:02:03]}  Nd7 {[%clk 0:00:15]} 29. Bb3 {[%clk 0:02:03]}  Qxd2 {[%clk 0:00:15]} 30. Bxa2 {[%clk 0:02:02]}  Qxa2 {[%clk 0:00:14]} 31. Rxe4 {[%clk 0:02:02]}  Ne5 {[%clk 0:00:11]} 32. f4 {[%clk 0:02:00]}  Bh4 {[%clk 0:00:11]} 33. fxe5 {[%clk 0:01:58]}  Qf2+ {[%clk 0:00:11]} 34. Kh1 {[%clk 0:01:58]}  dxe5 {[%clk 0:00:11]} 35. Rxe5 {[%clk 0:01:51]}  Bg3 {[%clk 0:00:11]} 36. Rd5 {[%clk 0:01:35]}  Bf4 {[%clk 0:00:08]} 37. Rd3 {[%clk 0:01:30]}  Be3 {[%clk 0:00:06]} 38. f6 {[%clk 0:01:16]}  gxf6 {[%clk 0:00:06]} 39. Qg4+ {[%clk 0:01:06]}  Kh7 {[%clk 0:00:06]} 40. Qe4+ {[%clk 0:01:05]}  f5 {[%clk 0:00:06]} 41. Qxe3 {[%clk 0:01:04]}  Qf1+ {[%clk 0:00:06]} 42. Kh2 {[%clk 0:01:04]}  f4 {[%clk 0:00:06]} 43. Qe4+ {[%clk 0:01:04]}  Kg7 {[%clk 0:00:06]} 44. Rf3 {[%clk 0:01:04]} 1-0


[Site "https://www.chess.com"]